[Event "FIDE CB Open 2022"]
[Site "Ceske Budejovice"]
[Date "2022.07.03"]
[Round "3.2"]
[White "Velicka, Petr"]
[Black "Kratochvil, Vit"]
[Result "1/2-1/2"]
[ECO "B42"]
[WhiteElo "2384"]
[BlackElo "2237"]
[Annotator "RC"]
[PlyCount "96"]
[EventDate "2022.07.01"]
[EventType "swiss"]
[EventCountry "CZE"]
[SourceTitle "playchess.com"]
[Source "ChessBase"]
[SourceQuality "1"]
[TimeControl "40/5400+30:1800+30"]

1. e4 {[%emt 0:00:07]} c5 {[%emt 0:00:06]} 2. Nf3 {[%emt 0:00:06]} e6 {[%emt 0:00:17]} 3. d4 {[%emt 0:00:09]} cxd4 {[%emt 0:00:09]} 4. Nxd4 {[%emt 0:00:06]} a6 {[%emt 0:00:20]} 5. Bd3 {[%emt 0:00:15]} Ne7 {[%emt 0:02:04]} 6. O-O {[%emt 0:05:18]} Nbc6 {[%emt 0:02:08]} 7. Nxc6 {[%emt 0:01:09]} Nxc6 {[%emt 0:03:42]} 8. c4 {[%emt 0:02:16]} Bc5 {[%emt 0:10:45]} 9. Nd2 {[%emt 0:03:49]} d6 {[%emt 0:07:44]} 10. Nf3 {[%emt 0:01:19]} e5 {[%emt 0:10:10]} 11. h3 {[%emt 0:01:17]} Qf6 {[%emt 0:04:44]} 12. Be3 {[%emt 0:03:38]} g5 {[%emt 0:17:07]} 13. Nh2 {[%emt 0:22:13]} h5 {[%emt 0:04:27]} 14. Qf3 {[%emt 0:01:55]} Qxf3 {[%emt 0:12:04]} 15. Nxf3 {[%emt 0:00:07]} g4 {[%emt 0:00:09]} 16. hxg4 {[%emt 0:00:57]} hxg4 {[%emt 0:00:19]} 17. Ne1 {[%emt 0:04:48]} Bxe3 {[%emt 0:12:08]} 18. fxe3 {[%emt 0:00:07]} g3 {[%emt 0:00:35]} 19. Rf3 {[%emt 0:02:57]} Rg8 {[%emt 0:00:06]} 20. Rf6 {[%emt 0:04:41]} Be6 {[%emt 0:01:08]} 21. Nc2 {[%emt 0:00:35]} Rc8 {[%emt 0:02:47]} 22. b3 {[%emt 0:00:33]} Nb8 {[%emt 0:02:31]} 23. Rh6 {[%emt 0:05:09]} Nd7 {[%emt 0:05:27]} 24. Rh4 {[%emt 0:01:24]} Nc5 {[%emt 0:00:39]} 25. Be2 {[%emt 0:00:10]} a5 {[%emt 0:00:40]} 26. Na3 {[%emt 0:10:43]} Ke7 {[%emt 0:00:26]} 27. Rb1 {[%emt 0:06:50]} Rh8 {[%emt 0:00:29]} 28. Rxh8 {[%emt 0:00:48]} Rxh8 {[%emt 0:00:01]} 29. Bf3 {[%emt 0:00:44]} Nd3 {[%emt 0:01:01]} 30. Kf1 {[%emt 0:03:13]} Nb4 {[%emt 0:00:40]} 31. Ke2 {[%emt 0:01:29]} Rh2 {[%emt 0:00:23]} 32. Kd2 {[%emt 0:02:35]} Bh3 {[%emt 0:00:30]} 33. Rg1 {[%emt 0:00:17]} Nxa2 {[%emt 0:00:31]} 34. Nc2 {[%emt 0:04:55]} Nb4 {[%emt 0:00:20]} 35. Nxb4 {[%emt 0:00:23]} axb4 {[%emt 0:00:01]} 36. Kd3 {[%emt 0:00:16]} Bd7 {[%emt 0:00:24]} 37. Ra1 {[%emt 0:01:25]} Rh8 {[%emt 0:00:59]} 38. Ra7 {[%emt 0:00:54]} Rb8 {[%emt 0:00:47]} 39. Ra1 {[%emt 0:02:09]} Be6 {[%emt 0:00:35]} 40. Kd2 {[%emt 0:03:32]} b5 {[%emt 0:00:23]} 41. Be2 {[%emt 0:35:42]} bxc4 {[%emt 0:17:25]} 42. Bxc4 {[%emt 0:00:00]} Bxc4 {[%emt 0:00:25]} 43. bxc4 {[%emt 0:00:00]} Ke6 {[%emt 0:00:54]} 44. Ra5 {[%emt 0:00:00]} b3 {[%emt 0:02:55]} 45. Rb5 {[%emt 0:00:00]} Ra8 {[%emt 0:00:05]} 46. Ke2 {[%emt 0:00:00]} Ra4 {[%emt 0:06:25]} 47. Rxb3 {[%emt 0:00:00]} Rxc4 {[%emt 0:00:07]} 48. Kf3 {[%emt 0:00:00]} Rc1 {[%emt 0:03:24]} 1/2-1/2

[Event "FIDE CB Open 2022"]
[Site "Ceske Budejovice"]
[Date "2022.07.03"]
[Round "3.3"]
[White "Cuhra, Martin"]
[Black "Neuman, Petr"]
[Result "1/2-1/2"]
[ECO "B33"]
[WhiteElo "2225"]
[BlackElo "2378"]
[Annotator "RC"]
[PlyCount "23"]
[EventDate "2022.07.01"]
[EventType "swiss"]
[EventCountry "CZE"]
[SourceTitle "playchess.com"]
[Source "ChessBase"]
[SourceQuality "1"]
[TimeControl "40/5400+30:1800+30"]

1. e4 {[%emt 0:00:05]} c5 {[%emt 0:00:10]} 2. Nf3 {[%emt 0:00:06]} Nc6 {[%emt 0:00:12]} 3. d4 {[%emt 0:00:30]} cxd4 {[%emt 0:00:09]} 4. Nxd4 {[%emt 0:00:06]} Nf6 {[%emt 0:00:17]} 5. Nc3 {[%emt 0:00:09]} e5 {[%emt 0:00:47]} 6. Ndb5 {[%emt 0:00:36]} d6 {[%emt 0:00:37]} 7. Nd5 {[%emt 0:00:42]} Nxd5 {[%emt 0:00:41]} 8. exd5 {[%emt 0:00:03]} Ne7 {[%emt 0:03:21]} 9. c4 {[%emt 0:00:34]} Ng6 {[%emt 0:03:00]} 10. Qa4 {[%emt 0:04:28]} Bd7 {[%emt 0:00:24]} 11. Qb4 {[%emt 0:00:10]} Qb8 {[%emt 0:00:41]} 12. Be3 {[%emt 0:01:02]} 1/2-1/2

[Event "FIDE CB Open 2022"]
[Site "Ceske Budejovice"]
[Date "2022.07.03"]
[Round "3.4"]
[White "Panjer, Sidney"]
[Black "Mostbauer, Florian"]
[Result "1/2-1/2"]
[ECO "D14"]
[WhiteElo "2140"]
[BlackElo "2303"]
[Annotator "RC"]
[PlyCount "24"]
[EventDate "2022.07.01"]
[EventType "swiss"]
[EventCountry "CZE"]
[SourceTitle "playchess.com"]
[Source "ChessBase"]
[SourceQuality "1"]
[TimeControl "40/5400+30:1800+30"]

1. Nf3 {[%emt 0:00:05]} d5 {[%emt 0:00:10]} 2. d4 {[%emt 0:00:09]} Nf6 {[%emt 0:00:08]} 3. c4 {[%emt 0:00:19]} c6 {[%emt 0:00:07]} 4. cxd5 {[%emt 0:00:16]} cxd5 {[%emt 0:00:09]} 5. Nc3 {[%emt 0:00:05]} Nc6 {[%emt 0:00:09]} 6. Bf4 {[%emt 0:00:08]} Bf5 {[%emt 0:00:11]} 7. e3 {[%emt 0:00:21]} e6 {[%emt 0:00:14]} 8. Qb3 {[%emt 0:00:32]} Bb4 {[%emt 0:02:50]} 9. Bb5 {[%emt 0:00:37]} Qa5 {[%emt 0:12:42]} 10. O-O {[%emt 0:01:04]} O-O {[%emt 0:08:52]} 11. Bxc6 {[%emt 0:00:18]} bxc6 {[%emt 0:00:34]} 12. Bc7 {[%emt 0:00:06]} Qxc7 {[%emt 0:01:33]} 1/2-1/2

[Event "FIDE CB Open 2022"]
[Site "Ceske Budejovice"]
[Date "2022.07.03"]
[Round "3.5"]
[White "Heimisson, Hilmir Freyr"]
[Black "Lacina, Adolf"]
[Result "1-0"]
[ECO "D45"]
[WhiteElo "2281"]
[BlackElo "2225"]
[Annotator "TA"]
[PlyCount "87"]
[EventDate "2022.07.01"]
[EventType "swiss"]
[EventCountry "CZE"]
[SourceTitle "playchess.com"]
[Source "ChessBase"]
[SourceQuality "1"]
[TimeControl "40/5400+30:1800+30"]

{[%evp 13,87,7,24,15,25,35,31,22,41,19,31,18,25,0,55,24,37,29,55,41,79,69,79,66,66,66,66,66,66,66,66,66,66,58,68,67,66,58,148,150,144,130,138,131,204,197,197,202,226,225,289,289,373,383,323,12,26,37,823,812,833,725,711,554,562,552,597,412,786,775,1180,768,1249,1154,2873,2473]} 1. Nf3 {[%emt 0:00:05]} d5 {[%emt 0:00:59]} 2. d4 {[%emt 0:00:20]} e6 {[%emt 0:00:39]} 3. c4 {[%emt 0:02:28]} Nf6 {[%emt 0:00:41]} 4. Nc3 {[%emt 0:00:15]} c6 {[%emt 0:02:12]} 5. e3 {[%emt 0:00:23]} Nbd7 {[%emt 0:00:24]} 6. Be2 {[%emt 0:02:02]} dxc4 {[%emt 0:01:05]} 7. a4 $1 {[%emt 0:00:31][%mdl 4] is now more promising than 7.Bxc4.} Bb4 {[%emt 0:05:50]} 8. Bxc4 {[%emt 0:03:58] D45: Semi-Slav: 5 e3.} Qc7 {[%emt 0:03:36]} 9. O-O {[%emt 0:05:08]} O-O {[%emt 0:02:23]} 10. Qc2 {[%emt 0:26:19] [#] White is slightly better.} e5 $146 {[%emt 0:04:36]} ({Predecessor:} 10... a5 11. Ne4 Be7 12. Nxf6+ Bxf6 13. Bd3 h6 14. Bd2 Qd6 15. Rfd1 Qe7 16. Bc3 e5 {½-½ (86) Martin Carmona,G (2333)-Gil Quilez,S (2126) Linares 2021}) 11. h3 {[%emt 0:02:58]} a5 {[%emt 0:06:03]} 12. Bd2 {[%emt 0:03:07]} h6 {[%emt 0:04:56]} 13. Rac1 {[%emt 0:02:53]} Bxc3 {[%emt 0:04:36]} (13... Re8 $11) 14. bxc3 {[%emt 0:06:23]} (14. Bxc3 $5 {[%cal Rd4e5]} e4 15. Ne5 $14) 14... e4 {[%emt 0:01:19]} 15. Nh2 {[%emt 0:00:46]} Re8 {[%emt 0:06:31]} 16. Rb1 {[%emt 0:02:42]} b6 {[%emt 0:05:49]} 17. Qb3 {[%emt 0:03:39]} Re7 {[%emt 0:03:47][%cal Ob6b5]} 18. Be2 {[%emt 0:00:36] Against b5} Ba6 {[%emt 0:01:59]} 19. c4 {[%emt 0:00:40]} c5 {[%emt 0:00:24]} 20. Rfe1 {[%emt 0:08:42]} Rc8 {[%emt 0:03:08]} 21. d5 {[%emt 0:01:09]} Rb8 {[%emt 0:04:08]} 22. Bc3 {[%emt 0:01:17]} Ne8 {[%emt 0:00:49]} 23. Qb2 {[%emt 0:01:10]} f5 {[%emt 0:01:09]} 24. Nf1 {[%emt 0:05:52]} Nd6 {[%emt 0:04:22]} 25. Ng3 {[%emt 0:00:06]} Rf8 {[%emt 0:02:45]} (25... g6 $14) 26. Nh5 $1 $16 {[%emt 0:03:27][%cal Rc3g7]} Rff7 {[%emt 0:01:30]} 27. Nf4 {[%emt 0:02:19]} Bxc4 {[%emt 0:04:14]} 28. Bh5 {[%emt 0:00:35] White is more active. A strong pair of Bishops.} Bd3 {[%emt 0:03:24]} (28... Qb7 $16 {might work better.}) 29. Bxf7+ $18 {[%emt 0:01:53]} Rxf7 {[%emt 0:00:14]} 30. Rbd1 {[%emt 0:01:31]} Nc4 {[%emt 0:04:21] [#]} 31. Qb5 {[%emt 0:03:23]} Nce5 {[%emt 0:05:19]} 32. Bxe5 {[%emt 0:01:32]} ({Less strong is} 32. Rxd3 exd3 33. Nxd3 Nxd3 34. Qxd3 Qd6 $14) ({Not} 32. Nxd3 Nxd3 33. Rxd3 exd3 $14) 32... Nxe5 {[%emt 0:00:16]} 33. Qe8+ {[%emt 0:00:43]} ({Weaker is} 33. Rxd3 exd3 34. Nxd3 Nxd3 35. Qxd3 Qd7 $14) 33... Kh7 {[%emt 0:01:07] [#]} 34. Ne6 $2 {[%emt 0:02:53]} (34. d6 $1 $18 {[%cal Rd6c7]} Qxd6 35. Nxd3 exd3 36. f4) 34... Qe7 {[%emt 0:03:01]} 35. Qb8 {[%emt 0:01:30][%csl LRb6,LRe5] The board is on fire.} c4 $2 {[%emt 0:01:32][%mdl 8192] Loses the game.} 36. Qxe5 {[%emt 0:00:12]} Qb4 {[%emt 0:00:41]} 37. Rc1 {[%emt 0:00:38]} Qxa4 {[%emt 0:00:39]} 38. Nd4 {[%emt 0:01:53]} Qd7 {[%emt 0:00:53]} 39. Qe6 {[%emt 0:02:01]} Qb7 {[%emt 0:01:32]} 40. Qc6 {[%emt 0:01:36]} Qb8 {[%emt 0:00:41]} (40... Rc7 $142 41. Qe6 Rf7) 41. d6 {[%emt 0:04:44] White is clearly winning.} Qd8 {[%emt 0:09:46] Inhibits d7.} 42. Rxc4 {[%emt 0:10:03]} f4 {[%emt 0:05:01] [#]} 43. exf4 $1 {[%emt 0:02:01] Threatens to win with Ne6.} Rxf4 {[%emt 0:07:03]} (43... Rf6 44. Nb5) 44. Ne6 {[%emt 0:04:47][%csl LRd8,LRf4] Weighted Error Value: White=0.28 (precise) /Black=0.25 (precise)} 1-0

[Event "FIDE CB Open 2022"]
[Site "Ceske Budejovice"]
[Date "2022.07.03"]
[Round "3.6"]
[White "Hrbek, Stepan"]
[Black "Mai, Alexander Oliver"]
[Result "1/2-1/2"]
[ECO "E51"]
[WhiteElo "2272"]
[BlackElo "2159"]
[Annotator "TA"]
[PlyCount "79"]
[EventDate "2022.07.01"]
[EventType "swiss"]
[EventCountry "CZE"]
[SourceTitle "playchess.com"]
[Source "ChessBase"]
[SourceQuality "1"]
[TimeControl "40/5400+30:1800+30"]

{[%evp 13,79,0,-2,-4,0,-8,56,48,68,56,60,64,53,0,62,68,60,29,54,-34,-38,-57,-60,-57,-53,-62,-60,-98,-72,-87,-89,-70,-16,-169,-171,-237,-241,-351,-183,-177,-36,-656,-598,-609,-612,-778,-733,-803,-796,-783,-783,-766,-514,-512,-159,-152,-152,-152,-152,-152,-152,-189,-152,-177,-153,-189,29982,-242]} 1. d4 {[%emt 0:00:09]} Nf6 {[%emt 0:00:07]} 2. c4 {[%emt 0:00:12]} e6 {[%emt 0:00:08]} 3. Nc3 {[%emt 0:00:11]} Bb4 {[%emt 0:00:08]} 4. e3 {[%emt 0:00:11]} O-O {[%emt 0:00:20]} 5. Bd2 {[%emt 0:00:15]} d5 {[%emt 0:00:42]} 6. Nf3 {[%emt 0:00:13]} b6 {[%emt 0:02:19]} 7. cxd5 {[%emt 0:00:30]} exd5 {[%emt 0:00:12]} 8. Bd3 {[%emt 0:00:11] E51: Nimzo-Indian: Rubinstein: 4...0-0 5 Nf3 d5.} Bd6 {[%emt 0:03:38]} 9. O-O {[%emt 0:00:21]} c5 {[%emt 0:04:23] [#]} ({Black should play} 9... Bb7 $11) 10. e4 $146 {[%emt 0:01:35] White is slightly better.} ({Predecessor:} 10. dxc5 bxc5 11. e4 dxe4 12. Nxe4 Bb7 13. Bg5 Bxe4 14. Bxf6 Bxh2+ 15. Nxh2 Qxd3 16. Qg4 {½-½ (62) Peng,L (2498)-Aditya,M (2459) Warsaw 2021}) 10... dxe4 {[%emt 0:04:50]} 11. Nxe4 {[%emt 0:00:37]} Bb7 {[%emt 0:00:15] [#]} 12. Bg5 $1 {[%emt 0:29:52]} Be7 {[%emt 0:00:38]} 13. Qc2 {[%emt 0:03:15]} (13. Bxf6 $14 Bxf6 14. dxc5 (14. Nxf6+ Qxf6 15. dxc5 Na6 $11)) 13... cxd4 {[%emt 0:06:30]} (13... Nbd7 $11 14. Bxf6 Nxf6) 14. Nxf6+ {[%emt 0:02:10]} Bxf6 {[%emt 0:00:08]} 15. Bxh7+ {[%emt 0:00:05]} Kh8 {[%emt 0:00:06]} 16. Qf5 {[%emt 0:02:09]} (16. Be4 $14 d3 17. Qc4 $1 (17. Qxd3 Qxd3 18. Bxd3 Bxb2 $14) 17... Bxe4 18. Qxe4) 16... Bxf3 $15 {[%emt 0:08:58]} 17. Qxf3 {[%emt 0:08:53] [#]} ({Of course not} 17. Bxf6 Qxf6 18. Qh3 (18. gxf3 Qh6 $17) 18... Bg4 $1 19. Qxg4 g6 20. Bxg6 (20. Qh3 $2 Kg7 $19) 20... Qxg6 $17) 17... Bxg5 {[%emt 0:00:37]} 18. Be4 {[%emt 0:01:53] [#] And now Qh3+ would win.} Na6 $1 {[%emt 0:04:42]} 19. Qh5+ {[%emt 0:21:15]} (19. Bxa8 Qxa8) 19... Bh6 {[%emt 0:13:06] White must now prevent ...Rb8.} 20. Bxa8 {[%emt 0:00:30]} Qxa8 {[%emt 0:00:30]} 21. Rad1 {[%emt 0:00:30]} Rd8 {[%emt 0:00:30]} 22. Qxf7 {[%emt 0:00:16]} Nc5 {[%emt 0:02:21]} ({Better is} 22... Qd5 $15 23. Qxd5 Rxd5) 23. Rfe1 $2 {[%emt 0:02:50]} (23. b4 $1 $11 {and White stays safe.} Ne4 24. Rfe1) 23... d3 $19 {[%emt 0:06:14][%cal Bd4d3,Bd3d2][%mdl 32]} 24. b4 {[%emt 0:08:03]} (24. Re5 $142) 24... d2 $1 {[%emt 0:03:51]} 25. Re7 {[%emt 0:00:06]} (25. Re2 $142 Ne4 26. Qb3) 25... Rf8 {[%emt 0:16:30]} (25... Ne4 $142 {aiming for ...Nf6.} 26. h3 Nf6) 26. Qh5 {[%emt 0:08:16] Hoping for Rxd2.} Ne4 {[%emt 0:02:57]} (26... Nd3 $1 $19 {Strongly threatening ...Qd8.} 27. Rxd2 Nf4) 27. Qh4 $2 {[%emt 0:00:30][%mdl 8192]} (27. Qg6 $15 Nxf2 28. Rxd2 Nh3+ 29. gxh3) 27... Rf4 {[%emt 0:00:30]} 28. Qh5 {[%emt 0:02:27] Threatens to win with Re8+.} Nf6 {[%emt 0:01:33] Prevents Re8+.} 29. Qh3 {[%emt 0:00:30]} Qd8 {[%emt 0:04:21]} 30. Re2 {[%emt 0:02:22]} Rc4 {[%emt 0:01:25] ( -> ...Rc1)} 31. g3 {[%emt 0:00:30]} Rc1 {[%emt 0:00:31]} 32. Qf1 {[%emt 0:00:05]} Qc8 {[%emt 0:02:16]} 33. f4 {[%emt 0:00:20] [#]} Rxd1 {[%emt 0:03:58]} (33... Bxf4 $1 $19 {[%mdl 512] is more deadly.} 34. gxf4 Qg4+ 35. Kh1 Ne4 $3 {[%mdl 512]} 36. Rxc1 dxc1=R 37. Qxc1 Qxe2 38. Qc8+ Kh7 39. Qh3+ Kg8 40. Qe6+ Kf8 41. Qf5+ Nf6 42. Qc8+ Kf7 43. Qb7+ Ke6 44. Qxg7 Qxa2) 34. Qxd1 $17 {[%emt 0:00:05] [#]} Ne4 {[%emt 0:00:21][%mdl 512]} 35. Rxd2 {[%emt 0:00:13]} ({Don't go for} 35. Rxe4 $2 Qc1 36. Qxc1 dxc1=Q+ $19) 35... Nxd2 {[%emt 0:00:44]} 36. Qxd2 {[%emt 0:00:04]} g6 {[%emt 0:01:32]} 37. Kf2 {[%emt 0:01:22]} Qe8 {[%emt 0:01:49]} 38. Kf3 {[%emt 0:00:08]} Bg7 {[%emt 0:00:23]} 39. Qe3 {[%emt 0:01:03]} Kh7 $4 {[%emt 0:02:13][%mdl 8192]} 40. Kf2 $4 {[%emt 0:00:00][%mdl 8192] Never resign too early!  Weighted Error Value: White=0.51/Black=0.65} (40. Qxe8 {mates} a6 41. Qd7 a5 42. b5 Kg8 43. Qe6+ Kf8 44. Qxb6 g5 45. Qd8+ Kf7 46. b6) 1/2-1/2

[Event "FIDE CB Open 2022"]
[Site "Ceske Budejovice"]
[Date "2022.07.03"]
[Round "3.7"]
[White "Zeman, Matyas"]
[Black "Pirola, Claudionor Alcides L"]
[Result "1/2-1/2"]
[ECO "C66"]
[WhiteElo "2262"]
[BlackElo "2100"]
[Annotator "RC"]
[PlyCount "45"]
[EventDate "2022.07.01"]
[EventType "swiss"]
[EventCountry "CZE"]
[SourceTitle "playchess.com"]
[Source "ChessBase"]
[SourceQuality "1"]
[TimeControl "40/5400+30:1800+30"]

1. e4 {[%emt 0:00:06]} e5 {[%emt 0:00:11]} 2. Nf3 {[%emt 0:00:08]} Nc6 {[%emt 0:00:07]} 3. Bb5 {[%emt 0:00:06]} Nf6 {[%emt 0:00:08]} 4. d3 {[%emt 0:00:12]} d6 {[%emt 0:00:36]} 5. O-O {[%emt 0:00:11]} Bd7 {[%emt 0:01:12]} 6. c4 {[%emt 0:05:19]} g6 {[%emt 0:00:38]} 7. Nc3 {[%emt 0:00:12]} Bg7 {[%emt 0:00:23]} 8. h3 {[%emt 0:01:35]} O-O {[%emt 0:00:53]} 9. Re1 {[%emt 0:00:18]} Nd4 {[%emt 0:07:40]} 10. Bxd7 {[%emt 0:03:58]} Nxf3+ {[%emt 0:01:36]} 11. Qxf3 {[%emt 0:00:04]} Nxd7 {[%emt 0:00:13]} 12. Be3 {[%emt 0:00:14]} Nc5 {[%emt 0:01:27]} 13. Bxc5 {[%emt 0:08:29]} dxc5 {[%emt 0:00:11]} 14. a3 {[%emt 0:00:06]} c6 {[%emt 0:05:27]} 15. b4 {[%emt 0:10:03]} cxb4 {[%emt 0:01:02]} 16. axb4 {[%emt 0:00:03]} a5 {[%emt 0:00:17]} 17. bxa5 {[%emt 0:17:06]} Rxa5 {[%emt 0:00:12]} 18. Qe3 {[%emt 0:02:28]} Qa8 {[%emt 0:01:55]} 19. Qc1 {[%emt 0:05:50]} Rd8 {[%emt 0:00:44]} 20. Rxa5 {[%emt 0:00:03]} Qxa5 {[%emt 0:00:13]} 21. Qc2 {[%emt 0:00:01]} Ra8 {[%emt 0:05:48]} 22. Rb1 {[%emt 0:01:55]} Ra7 {[%emt 0:01:04]} 23. g3 {[%emt 0:03:20]} 1/2-1/2

[Event "FIDE CB Open 2022"]
[Site "Ceske Budejovice"]
[Date "2022.07.03"]
[Round "3.8"]
[White "Librelato, Kathie Goulart"]
[Black "Kovalskyi, Roman"]
[Result "1-0"]
[ECO "B36"]
[WhiteElo "2255"]
[BlackElo "2056"]
[Annotator "ChessBase"]
[PlyCount "51"]
[EventDate "2022.07.01"]
[EventType "swiss"]
[EventCountry "CZE"]
[SourceTitle "playchess.com"]
[Source "ChessBase"]
[SourceQuality "1"]
[TimeControl "40/5400+30:1800+30"]

1. e4 {[%emt 0:00:03]} c5 {[%emt 0:00:05]} 2. Nf3 {[%emt 0:00:08]} g6 {[%emt 0:00:04]} 3. c4 {[%emt 0:00:28]} Nc6 {[%emt 0:00:06]} 4. d4 {[%emt 0:00:05]} cxd4 {[%emt 0:00:04]} 5. Nxd4 {[%emt 0:00:05]} Nf6 {[%emt 0:00:03]} 6. Nc3 {[%emt 0:00:15]} d6 {[%emt 0:00:04]} 7. Be2 {[%emt 0:00:10]} Nxd4 {[%emt 0:00:10]} 8. Qxd4 {[%emt 0:00:05]} Bg7 {[%emt 0:00:05]} 9. Be3 {[%emt 0:00:08]} O-O {[%emt 0:00:05]} 10. Qd2 {[%emt 0:00:04]} a5 {[%emt 0:00:05]} 11. O-O {[%emt 0:00:14]} a4 {[%emt 0:00:02]} 12. Bd4 {[%emt 0:00:15]} Qa5 {[%emt 0:00:48]} 13. Rad1 {[%emt 0:00:11]} Be6 {[%emt 0:21:43]} 14. f4 {[%emt 0:00:34]} Rfc8 {[%emt 0:00:16]} 15. b3 {[%emt 0:00:13]} axb3 {[%emt 0:00:06]} 16. axb3 {[%emt 0:00:09]} Ne8 {[%emt 0:16:00]} 17. f5 {[%emt 0:09:37]} Bd7 {[%emt 0:28:37]} 18. Nd5 {[%emt 0:08:16]} Qd8 {[%emt 0:02:40]} 19. Bb6 {[%emt 0:14:04]} Nc7 {[%emt 0:04:06]} 20. f6 {[%emt 0:00:18]} Bf8 {[%emt 0:05:45]} 21. e5 {[%emt 0:09:42]} Be6 {[%emt 0:11:11]} 22. fxe7 {[%emt 0:00:52]} Bxe7 {[%emt 0:00:02]} 23. Nxe7+ {[%emt 0:00:12]} Qxe7 {[%emt 0:00:05]} 24. exd6 {[%emt 0:00:05]} Qh4 {[%emt 0:00:52]} 25. Bxc7 {[%emt 0:02:35]} b5 {[%emt 0:00:13]} 26. d7 {[%emt 0:00:34]} 1-0

[Event "FIDE CB Open 2022"]
[Site "Ceske Budejovice"]
[Date "2022.07.03"]
[Round "3.9"]
[White "Domalchuk-Jonasson, Aleksandr"]
[Black "Vilimek, Vit"]
[Result "0-1"]
[ECO "D87"]
[WhiteElo "2244"]
[BlackElo "1996"]
[Annotator "TA"]
[PlyCount "115"]
[EventDate "2022.07.01"]
[EventType "swiss"]
[EventCountry "CZE"]
[SourceTitle "playchess.com"]
[Source "ChessBase"]
[SourceQuality "1"]
[TimeControl "40/5400+30:1800+30"]

{[%evp 19,115,44,35,16,27,15,17,0,0,0,0,0,0,0,0,0,0,0,0,0,0,5,0,0,45,46,41,0,0,0,0,0,0,-13,-12,-13,-13,-13,-13,-13,-13,-13,-14,-11,0,0,7,7,243,235,385,307,436,437,460,354,346,352,326,338,266,78,344,411,410,377,491,478,493,467,524,553,835,775,840,520,696,658,1396,1107,1294,1091,1414,0,1071,1063,796,761,1744,1687,1828,436,1401,1869,1409,1183,29988,511]} 1. d4 {[%emt 0:00:04]} Nf6 {[%emt 0:00:01]} 2. c4 {[%emt 0:00:20]} g6 {[%emt 0:00:02]} 3. Nc3 {[%emt 0:00:27]} d5 {[%emt 0:00:40]} 4. cxd5 {[%emt 0:00:40]} Nxd5 {[%emt 0:00:02]} 5. e4 {[%emt 0:00:31]} Nxc3 {[%emt 0:00:06]} 6. bxc3 {[%emt 0:00:04]} Bg7 {[%emt 0:00:05]} 7. Bc4 {[%emt 0:01:30]} c5 {[%emt 0:00:32]} 8. Ne2 {[%emt 0:00:21]} Qa5 {[%emt 0:01:52]} 9. O-O {[%emt 0:05:34]} Nc6 {[%emt 0:00:27]} 10. Be3 {[%emt 0:00:54]} O-O {[%emt 0:00:10]} 11. Rc1 {[%emt 0:10:32] D87: Exchange Grünfeld: Classical Line: Variations without ...cxd4.} Rd8 {[%emt 0:08:39]} 12. Qb3 {[%emt 0:04:40]} e6 {[%emt 0:01:46][%cal Rc5d4]} 13. d5 {[%emt 0:13:11] The position is equal.} Ne5 {[%emt 0:17:54]} 14. dxe6 {[%emt 0:01:19]} Nxc4 {[%emt 0:00:02]} 15. exf7+ {[%emt 0:00:51]} Kxf7 {[%emt 0:00:05]} 16. Qxc4+ {[%emt 0:00:08]} Be6 {[%emt 0:00:04]} 17. Qxc5 {[%emt 0:00:49]} Qxc5 {[%emt 0:04:01]} 18. Bxc5 {[%emt 0:00:17] [#]} Bxa2 $146 {[%emt 0:00:07] A strong pair of Bishops.} ({Predecessor:} 18... Bc4 19. Rc2 Bd3 20. Rd2 Bxe4 21. Rxd8 Rxd8 22. Bxa7 Rd2 23. Re1 Rxa2 24. Bd4 Bh6 {½-½ (59) Matros,A (2372)-Shen,C (2335) Charlotte 2022}) 19. Rfd1 {[%emt 0:13:15]} Bc4 {[%emt 0:04:44]} 20. Nd4 {[%emt 0:01:43]} b6 {[%emt 0:00:13]} 21. Ba3 {[%emt 0:02:00]} Rac8 {[%emt 0:00:38]} 22. f4 {[%emt 0:08:31]} Bxd4+ {[%emt 0:29:28]} 23. cxd4 {[%emt 0:00:56]} Bb3 {[%emt 0:00:07]} 24. Rxc8 {[%emt 0:09:05]} Rxc8 $11 {[%emt 0:01:52][%mdl 4096] Endgame KRB-KRB} 25. Rd3 {[%emt 0:00:05]} Bc2 {[%emt 0:10:51]} 26. Re3 {[%emt 0:01:43]} Rc4 {[%emt 0:04:30][%mdl 1024] Black has compensation.} 27. Bb2 {[%emt 0:02:45]} a5 {[%emt 0:02:01]} 28. Kf2 {[%emt 0:04:27]} b5 {[%emt 0:01:24] With the idea ...b4.} 29. Re1 {[%emt 0:09:32]} b4 {[%emt 0:02:13] [#] And now ...a4 would win.} 30. Ke3 {[%emt 0:01:00]} a4 {[%emt 0:04:14] aiming for ...a3.} 31. Ra1 {[%emt 0:01:29]} Rc8 {[%emt 0:00:55]} 32. d5 {[%emt 0:01:45]} Bb3 {[%emt 0:06:06]} 33. Rc1 {[%emt 0:01:05]} Rb8 {[%emt 0:00:36] White leaves nothing to chance now.} (33... Bc4 $11) 34. Rc7+ $18 {[%emt 0:00:31]} Ke8 {[%emt 0:00:30]} (34... Kg8 $142 35. Rg7+ Kf8 36. Rxh7 Re8) 35. Rxh7 {[%emt 0:03:40]} Rb6 {[%emt 0:00:04]} (35... Rc8 {was necessary.} 36. d6 Rc6) 36. Bd4 {[%emt 0:00:34]} Rd6 {[%emt 0:00:54]} 37. Bc5 {[%emt 0:00:40]} Ra6 {[%emt 0:00:18]} 38. Bxb4 {[%emt 0:00:22]} a3 {[%emt 0:00:08]} 39. Bc3 {[%emt 0:00:50]} a2 {[%emt 0:00:24]} 40. Rb7 $2 {[%emt 0:01:21]} (40. Ba1 $18) 40... Bc4 $2 {[%emt 0:00:02][%mdl 8192]} (40... Bc2 $16) 41. Ba1 {[%emt 0:02:10]} Bf1 {[%emt 0:04:19]} 42. g4 {[%emt 0:04:28][%cal Bg2g4,Bg4g5][%mdl 32]} Bg2 {[%emt 0:00:50]} 43. Rb4 {[%emt 0:01:35] Inhibits Ra4.} Bh3 {[%emt 0:06:07]} 44. g5 {[%emt 0:04:21]} Ra3+ {[%emt 0:08:24]} 45. Kd4 {[%emt 0:01:19]} Bg2 {[%emt 0:00:26]} 46. h4 {[%emt 0:08:02]} Bf3 {[%emt 0:02:06]} 47. Rc4 {[%emt 0:01:20]} Ke7 {[%emt 0:04:00]} 48. Ke5 {[%emt 0:02:23] [#] Intending d6+ and mate.} Re3 {[%emt 0:01:14]} 49. Ra4 {[%emt 0:00:21]} Re1 {[%emt 0:00:14]} 50. Bc3 {[%emt 0:00:46]} Re3 {[%emt 0:00:05]} 51. Ba1 {[%emt 0:02:42]} Re1 {[%emt 0:00:09]} 52. Ra7+ {[%emt 0:02:09]} Ke8 {[%emt 0:00:21]} 53. Rxa2 {[%emt 0:02:02]} Rxe4+ {[%emt 0:00:23]} 54. Kd6 {[%emt 0:00:07] Ra8+ is the strong threat.} Rxf4 {[%emt 0:01:26]} 55. Ra8+ {[%emt 0:02:02]} Kf7 {[%emt 0:00:02]} 56. Ra7+ {[%emt 0:00:05]} Kf8 {[%emt 0:02:36]} 57. Bg7+ {[%emt 0:00:57]} Ke8 {[%emt 0:06:10]} 58. Ra8+ {[%emt 0:00:18][%mdl 32768] Weighted Error Value: White=0.24 (precise) /Black=0.51. Loss on time!?} 0-1